[Event "Titled Tuesday Blitz March 29 Early 2022"]
[White "Biletskiy, Danylo"]
[Black "Silva, Mariana Sofia T."]
[WhiteFideId "14155419"]
[BlackFideId "1911899"]
[WhiteElo "2087"]
[BlackElo "1825"]
[Result "1-0"]
[Round "07"]
[TimeControl "180+1"]
[Date "2022.03.30"]
[WhiteClock "0:01:00"]
[BlackClock "0:00:04"]

1. e4 {[%clk 0:03:00]}  c6 {[%clk 0:02:59]} 2. Ne2 {[%clk 0:02:56]}  d5 {[%clk 0:02:57]} 3. e5 {[%clk 0:02:56]}  c5 {[%clk 0:02:46]} 4. d4 {[%clk 0:02:50]}  cxd4 {[%clk 0:02:44]} 5. Nxd4 {[%clk 0:02:51]}  e6 {[%clk 0:02:42]} 6. c4 {[%clk 0:02:50]}  Ne7 {[%clk 0:02:33]} 7. Nc3 {[%clk 0:02:48]}  a6 {[%clk 0:02:30]} 8. Be3 {[%clk 0:02:43]}  Nbc6 {[%clk 0:02:30]} 9. Nxc6 {[%clk 0:02:39]}  Nxc6 {[%clk 0:02:29]} 10. cxd5 {[%clk 0:02:39]}  exd5 {[%clk 0:02:19]} 11. Nxd5 {[%clk 0:02:39]}  Nxe5 {[%clk 0:02:17]} 12. Bb6 {[%clk 0:02:38]}  Bb4+ {[%clk 0:02:07]} 13. Ke2 {[%clk 0:02:22]}  Qh4 {[%clk 0:01:25]} 14. Qd4 {[%clk 0:01:48]}  Qxd4 {[%clk 0:00:59]} 15. Bxd4 {[%clk 0:01:48]}  Bd6 {[%clk 0:00:57]} 16. f4 {[%clk 0:01:46]}  Nc6 {[%clk 0:00:52]} 17. Bxg7 {[%clk 0:01:45]}  Rg8 {[%clk 0:00:53]} 18. Nf6+ {[%clk 0:01:44]}  Kd8 {[%clk 0:00:40]} 19. Nxg8 {[%clk 0:01:45]}  Bg4+ {[%clk 0:00:40]} 20. Kf2 {[%clk 0:01:43]}  Kc7 {[%clk 0:00:34]} 21. Nf6 {[%clk 0:01:43]}  Bf5 {[%clk 0:00:29]} 22. Bc4 {[%clk 0:01:24]}  Bc5+ {[%clk 0:00:21]} 23. Kg3 {[%clk 0:01:23]}  Nd4 {[%clk 0:00:16]} 24. Rad1 {[%clk 0:01:20]}  Kc6 {[%clk 0:00:10]} 25. b4 {[%clk 0:01:19]}  Bb6 {[%clk 0:00:09]} 26. a4 {[%clk 0:01:12]}  Bg6 {[%clk 0:00:08]} 27. Bd5+ {[%clk 0:01:08]}  Kd6 {[%clk 0:00:06]} 28. Be4 {[%clk 0:01:05]}  Ke6 {[%clk 0:00:02]} 29. Bxg6 {[%clk 0:01:04]}  hxg6 {[%clk 0:00:03]} 30. Rhe1+ {[%clk 0:01:01]}  Kf5 {[%clk 0:00:04]} 31. Re5# {[%clk 0:01:00]} 1-0


[Site "https://www.chess.com"]

[Event "Titled Tuesday Blitz March 29 Early 2022"]
[White "Bintang, Rasyid A. Hidayat"]
[Black "Khripachenko, Alexander"]
[WhiteFideId "7105355"]
[BlackFideId "54184975"]
[WhiteElo "2384"]
[BlackElo "2177"]
[Result "1-0"]
[Round "07"]
[TimeControl "180+1"]
[Date "2022.03.30"]
[WhiteClock "0:00:35"]
[BlackClock "0:01:00"]

1. d4 {[%clk 0:03:00]}  Nf6 {[%clk 0:02:59]} 2. Bf4 {[%clk 0:03:00]}  g6 {[%clk 0:02:59]} 3. Nc3 {[%clk 0:03:00]}  Bg7 {[%clk 0:02:57]} 4. e4 {[%clk 0:03:00]}  d6 {[%clk 0:02:57]} 5. Qd2 {[%clk 0:02:58]}  c6 {[%clk 0:02:53]} 6. O-O-O {[%clk 0:02:57]}  b5 {[%clk 0:02:53]} 7. f3 {[%clk 0:02:57]}  b4 {[%clk 0:02:51]} 8. Nce2 {[%clk 0:02:57]}  Qa5 {[%clk 0:02:51]} 9. Kb1 {[%clk 0:02:57]}  Be6 {[%clk 0:02:50]} 10. Nc1 {[%clk 0:02:58]}  Nbd7 {[%clk 0:02:49]} 11. Nh3 {[%clk 0:02:50]}  h6 {[%clk 0:02:49]} 12. Nf2 {[%clk 0:02:49]}  Nb6 {[%clk 0:02:49]} 13. Nb3 {[%clk 0:02:47]}  Qa4 {[%clk 0:02:48]} 14. g4 {[%clk 0:02:37]}  Nc4 {[%clk 0:02:42]} 15. Bxc4 {[%clk 0:02:37]}  Bxc4 {[%clk 0:02:43]} 16. e5 {[%clk 0:02:36]}  dxe5 {[%clk 0:02:39]} 17. dxe5 {[%clk 0:02:37]}  Nd5 {[%clk 0:02:39]} 18. Nc1 {[%clk 0:02:29]}  Qa5 {[%clk 0:02:35]} 19. Nb3 {[%clk 0:02:28]}  Qa4 {[%clk 0:02:34]} 20. Nc1 {[%clk 0:02:27]}  Rb8 {[%clk 0:02:33]} 21. Ne4 {[%clk 0:02:14]}  O-O {[%clk 0:02:19]} 22. b3 {[%clk 0:02:05]}  Qa3 {[%clk 0:02:19]} 23. Nd3 {[%clk 0:01:43]}  Bxd3 {[%clk 0:02:00]} 24. cxd3 {[%clk 0:01:41]}  Nxf4 {[%clk 0:01:59]} 25. Qxf4 {[%clk 0:01:41]}  Rbd8 {[%clk 0:01:59]} 26. d4 {[%clk 0:01:39]}  Qa5 {[%clk 0:01:58]} 27. Nc5 {[%clk 0:01:37]}  Rd5 {[%clk 0:01:53]} 28. e6 {[%clk 0:01:33]}  f5 {[%clk 0:01:52]} 29. Nd7 {[%clk 0:01:27]}  Rd8 {[%clk 0:01:41]} 30. Rhg1 {[%clk 0:01:23]}  g5 {[%clk 0:01:40]} 31. Qe3 {[%clk 0:01:19]}  Qa3 {[%clk 0:01:24]} 32. gxf5 {[%clk 0:01:12]}  Rxf5 {[%clk 0:01:24]} 33. h4 {[%clk 0:01:07]}  c5 {[%clk 0:01:09]} 34. hxg5 {[%clk 0:00:59]}  cxd4 {[%clk 0:01:09]} 35. Qd3 {[%clk 0:00:57]}  Rxg5 {[%clk 0:01:03]} 36. Rxg5 {[%clk 0:00:56]}  hxg5 {[%clk 0:01:04]} 37. Rh1 {[%clk 0:00:50]}  Rxd7 {[%clk 0:01:02]} 38. exd7 {[%clk 0:00:50]}  Qa5 {[%clk 0:01:03]} 39. Qc4+ {[%clk 0:00:41]}  Kf8 {[%clk 0:01:00]} 40. Qc8+ {[%clk 0:00:38]}  Kf7 {[%clk 0:01:00]} 41. d8=Q {[%clk 0:00:35]} 1-0


[Site "https://www.chess.com"]

[Event "Titled Tuesday Blitz March 29 Early 2022"]
[White "Brodowski, Piotr"]
[Black "Tsyhanchuk, Stanislav"]
[WhiteFideId "1124480"]
[BlackFideId "13505130"]
[WhiteElo "2422"]
[BlackElo "2078"]
[Result "0-1"]
[Round "07"]
[TimeControl "180+1"]
[Date "2022.03.30"]
[WhiteClock "0:00:11"]
[BlackClock "0:00:04"]

1. e4 {[%clk 0:02:54]}  c5 {[%clk 0:02:58]} 2. Nc3 {[%clk 0:02:52]}  Nc6 {[%clk 0:02:58]} 3. Bb5 {[%clk 0:02:47]}  Nd4 {[%clk 0:02:51]} 4. Nf3 {[%clk 0:02:47]}  Nxb5 {[%clk 0:02:50]} 5. Nxb5 {[%clk 0:02:47]}  a6 {[%clk 0:02:49]} 6. Nc3 {[%clk 0:02:45]}  e6 {[%clk 0:02:48]} 7. d4 {[%clk 0:02:43]}  cxd4 {[%clk 0:02:49]} 8. Qxd4 {[%clk 0:02:43]}  Ne7 {[%clk 0:02:49]} 9. Bf4 {[%clk 0:02:20]}  Nc6 {[%clk 0:02:46]} 10. Qd2 {[%clk 0:02:20]}  b5 {[%clk 0:02:43]} 11. a3 {[%clk 0:02:12]}  Be7 {[%clk 0:02:41]} 12. O-O {[%clk 0:02:11]}  O-O {[%clk 0:02:40]} 13. Rad1 {[%clk 0:02:11]}  f5 {[%clk 0:02:35]} 14. exf5 {[%clk 0:02:05]}  Rxf5 {[%clk 0:02:36]} 15. Bd6 {[%clk 0:02:05]}  Bf6 {[%clk 0:02:10]} 16. Ne4 {[%clk 0:01:51]}  Qe8 {[%clk 0:01:54]} 17. Qe2 {[%clk 0:01:41]}  Qh5 {[%clk 0:01:41]} 18. Ng3 {[%clk 0:01:40]}  Qg6 {[%clk 0:01:36]} 19. Nxf5 {[%clk 0:01:38]}  Qxf5 {[%clk 0:01:37]} 20. c3 {[%clk 0:01:34]}  Bb7 {[%clk 0:01:35]} 21. Rfe1 {[%clk 0:01:32]}  Re8 {[%clk 0:01:18]} 22. Bg3 {[%clk 0:01:28]}  d5 {[%clk 0:01:15]} 23. Nd4 {[%clk 0:01:26]}  Qg6 {[%clk 0:00:58]} 24. Nxc6 {[%clk 0:01:12]}  Bxc6 {[%clk 0:00:59]} 25. Qe3 {[%clk 0:01:11]}  d4 {[%clk 0:00:41]} 26. cxd4 {[%clk 0:01:10]}  Bd5 {[%clk 0:00:42]} 27. Rc1 {[%clk 0:01:08]}  Bg5 {[%clk 0:00:38]} 28. f4 {[%clk 0:01:03]}  Bf6 {[%clk 0:00:39]} 29. Rc7 {[%clk 0:00:50]}  h5 {[%clk 0:00:38]} 30. Re2 {[%clk 0:00:19]}  h4 {[%clk 0:00:32]} 31. Be1 {[%clk 0:00:19]}  Bc4 {[%clk 0:00:28]} 32. Rf2 {[%clk 0:00:16]}  h3 {[%clk 0:00:28]} 33. g3 {[%clk 0:00:13]}  Rd8 {[%clk 0:00:23]} 34. Rxc4 {[%clk 0:00:10]}  bxc4 {[%clk 0:00:21]} 35. Bc3 {[%clk 0:00:11]}  Qf5 {[%clk 0:00:20]} 36. Re2 {[%clk 0:00:11]}  Kf7 {[%clk 0:00:13]} 37. Qe4 {[%clk 0:00:11]}  Rd5 {[%clk 0:00:10]} 38. Qxf5 {[%clk 0:00:07]}  exf5 {[%clk 0:00:09]} 39. Rd2 {[%clk 0:00:07]}  a5 {[%clk 0:00:07]} 40. Kf2 {[%clk 0:00:08]}  a4 {[%clk 0:00:07]} 41. Ke3 {[%clk 0:00:05]}  g5 {[%clk 0:00:05]} 42. Rf2 {[%clk 0:00:04]}  g4 {[%clk 0:00:05]} 43. Re2 {[%clk 0:00:05]}  Rd7 {[%clk 0:00:04]} 44. Kd2 {[%clk 0:00:03]}  Bxd4 {[%clk 0:00:03]} 45. Kc2 {[%clk 0:00:04]}  Bc5 {[%clk 0:00:01]} 46. Re5 {[%clk 0:00:03]}  Be7 {[%clk 0:00:02]} 47. Rxf5+ {[%clk 0:00:04]}  Ke6 {[%clk 0:00:02]} 48. Re5+ {[%clk 0:00:04]}  Kf7 {[%clk 0:00:03]} 49. Re4 {[%clk 0:00:05]}  Rd3 {[%clk 0:00:02]} 50. Rxc4 {[%clk 0:00:05]}  Rf3 {[%clk 0:00:03]} 51. Rd4 {[%clk 0:00:05]}  Bc5 {[%clk 0:00:02]} 52. Rd2 {[%clk 0:00:06]}  Be3 {[%clk 0:00:02]} 53. Re2 {[%clk 0:00:06]}  Bg1 {[%clk 0:00:02]} 54. Be1 {[%clk 0:00:04]}  Be3 {[%clk 0:00:01]} 55. Kd3 {[%clk 0:00:04]}  Bc5+ {[%clk 0:00:01]} 56. Ke4 {[%clk 0:00:05]}  Be7 {[%clk 0:00:02]} 57. Bc3 {[%clk 0:00:05]}  Rf1 {[%clk 0:00:02]} 58. Bd4 {[%clk 0:00:06]}  Bf6 {[%clk 0:00:01]} 59. Bxf6 {[%clk 0:00:06]}  Kxf6 {[%clk 0:00:02]} 60. Ke3 {[%clk 0:00:06]}  Rf3+ {[%clk 0:00:02]} 61. Kd2 {[%clk 0:00:06]}  Rb3 {[%clk 0:00:03]} 62. Kc2 {[%clk 0:00:07]}  Rf3 {[%clk 0:00:03]} 63. Rd2 {[%clk 0:00:07]}  Kf5 {[%clk 0:00:03]} 64. Rd5+ {[%clk 0:00:08]}  Kf6 {[%clk 0:00:04]} 65. Re5 {[%clk 0:00:08]}  Rf2+ {[%clk 0:00:04]} 66. Kc3 {[%clk 0:00:09]}  Rxh2 {[%clk 0:00:05]} 67. Rh5 {[%clk 0:00:09]}  Rg2 {[%clk 0:00:05]} 68. Kd4 {[%clk 0:00:09]}  Rxg3 {[%clk 0:00:06]} 69. Ke4 {[%clk 0:00:10]}  Rb3 {[%clk 0:00:05]} 70. Rh6+ {[%clk 0:00:10]}  Kg7 {[%clk 0:00:05]} 71. Rh4 {[%clk 0:00:11]}  g3 {[%clk 0:00:03]} 72. Rxh3 {[%clk 0:00:11]}  g2 {[%clk 0:00:04]} 0-1


[Site "https://www.chess.com"]

[Event "Titled Tuesday Blitz March 29 Early 2022"]
[White "Caruana, Fabiano"]
[Black "Rastbod, Ali"]
[WhiteFideId "2020009"]
[BlackFideId "12567477"]
[WhiteElo "2744"]
[BlackElo "2200"]
[Result "1-0"]
[Round "07"]
[TimeControl "180+1"]
[Date "2022.03.29"]
[WhiteClock "0:00:13"]
[BlackClock "0:00:06"]

1. c4 {[%clk 0:03:00]}  g6 {[%clk 0:02:43]} 2. g3 {[%clk 0:02:58]}  Bg7 {[%clk 0:02:43]} 3. Bg2 {[%clk 0:02:59]}  d6 {[%clk 0:02:43]} 4. Nc3 {[%clk 0:02:58]}  Nc6 {[%clk 0:02:43]} 5. e3 {[%clk 0:02:57]}  e5 {[%clk 0:02:41]} 6. Nge2 {[%clk 0:02:58]}  Nge7 {[%clk 0:02:41]} 7. O-O {[%clk 0:02:57]}  O-O {[%clk 0:02:41]} 8. d4 {[%clk 0:02:58]}  exd4 {[%clk 0:02:41]} 9. exd4 {[%clk 0:02:58]}  Bg4 {[%clk 0:02:42]} 10. h3 {[%clk 0:02:57]}  Bd7 {[%clk 0:02:39]} 11. b3 {[%clk 0:02:49]}  Nf5 {[%clk 0:02:38]} 12. d5 {[%clk 0:02:49]}  Ncd4 {[%clk 0:02:35]} 13. Nxd4 {[%clk 0:02:44]}  Nxd4 {[%clk 0:02:36]} 14. Be3 {[%clk 0:02:42]}  Nf5 {[%clk 0:02:31]} 15. Bd2 {[%clk 0:02:41]}  Re8 {[%clk 0:02:27]} 16. Rc1 {[%clk 0:02:40]}  h6 {[%clk 0:02:21]} 17. Re1 {[%clk 0:02:38]}  Kh7 {[%clk 0:02:18]} 18. Ne4 {[%clk 0:02:35]}  Re7 {[%clk 0:02:08]} 19. Bc3 {[%clk 0:02:32]}  Qh8 {[%clk 0:01:58]} 20. Bxg7 {[%clk 0:02:20]}  Qxg7 {[%clk 0:01:59]} 21. g4 {[%clk 0:02:06]}  Rae8 {[%clk 0:01:48]} 22. Qd2 {[%clk 0:01:44]}  Nh4 {[%clk 0:01:10]} 23. Bh1 {[%clk 0:01:33]}  f5 {[%clk 0:00:35]} 24. Ng3 {[%clk 0:01:33]}  fxg4 {[%clk 0:00:27]} 25. Rxe7 {[%clk 0:01:32]}  Qxe7 {[%clk 0:00:26]} 26. c5 {[%clk 0:01:13]}  gxh3 {[%clk 0:00:10]} 27. cxd6 {[%clk 0:01:12]}  cxd6 {[%clk 0:00:10]} 28. Rc7 {[%clk 0:01:07]}  Qg7 {[%clk 0:00:05]} 29. Rxb7 {[%clk 0:01:01]}  Re7 {[%clk 0:00:04]} 30. Rxa7 {[%clk 0:01:01]}  Nf5 {[%clk 0:00:01]} 31. Nxf5 {[%clk 0:00:50]}  gxf5+ {[%clk 0:00:02]} 32. Kh2 {[%clk 0:00:50]}  Qe5+ {[%clk 0:00:02]} 33. f4 {[%clk 0:00:50]}  Qf6 {[%clk 0:00:02]} 34. Bf3 {[%clk 0:00:48]}  Rg7 {[%clk 0:00:02]} 35. Qf2 {[%clk 0:00:46]}  Qg6 {[%clk 0:00:01]} 36. a4 {[%clk 0:00:39]}  Be8 {[%clk 0:00:02]} 37. Rxg7+ {[%clk 0:00:38]}  Qxg7 {[%clk 0:00:02]} 38. a5 {[%clk 0:00:33]}  Qc3 {[%clk 0:00:03]} 39. a6 {[%clk 0:00:32]}  Qxb3 {[%clk 0:00:03]} 40. a7 {[%clk 0:00:32]}  Qa4 {[%clk 0:00:03]} 41. Qe3 {[%clk 0:00:28]}  Bf7 {[%clk 0:00:03]} 42. Kxh3 {[%clk 0:00:25]}  Kg7 {[%clk 0:00:03]} 43. Kg3 {[%clk 0:00:21]}  Kh7 {[%clk 0:00:03]} 44. Qe7 {[%clk 0:00:20]}  Kg7 {[%clk 0:00:04]} 45. Qe3 {[%clk 0:00:17]}  Qa1 {[%clk 0:00:03]} 46. Qb6 {[%clk 0:00:17]}  Qe1+ {[%clk 0:00:02]} 47. Kg2 {[%clk 0:00:17]}  Qd2+ {[%clk 0:00:02]} 48. Qf2 {[%clk 0:00:18]}  Qa5 {[%clk 0:00:02]} 49. Qd4+ {[%clk 0:00:18]}  Kh7 {[%clk 0:00:02]} 50. Qe3 {[%clk 0:00:17]}  Qa2+ {[%clk 0:00:02]} 51. Kg3 {[%clk 0:00:17]}  Bxd5 {[%clk 0:00:03]} 52. Bxd5 {[%clk 0:00:15]}  Qxd5 {[%clk 0:00:04]} 53. Qa3 {[%clk 0:00:16]}  Qa8 {[%clk 0:00:03]} 54. Qa5 {[%clk 0:00:15]}  Kg7 {[%clk 0:00:04]} 55. Qc7+ {[%clk 0:00:15]}  Kg6 {[%clk 0:00:04]} 56. Qb8 {[%clk 0:00:16]}  Qe4 {[%clk 0:00:05]} 57. a8=Q {[%clk 0:00:14]}  Qe3+ {[%clk 0:00:05]} 58. Qf3 {[%clk 0:00:13]}  Qg1+ {[%clk 0:00:05]} 59. Qg2 {[%clk 0:00:13]}  Qe3+ {[%clk 0:00:06]} 60. Kh2+ {[%clk 0:00:13]} 1-0


[Site "https://www.chess.com"]

[Event "Titled Tuesday Blitz March 29 Early 2022"]
[White "Chen, Qi b"]
[Black "Posthuma, Joshua"]
[WhiteFideId "8614733"]
[BlackFideId "2096889"]
[WhiteElo "2432"]
[BlackElo "2176"]
[Result "0-1"]
[Round "07"]
[TimeControl "180+1"]
[Date "2022.03.29"]
[WhiteClock "0:00:15"]
[BlackClock "0:00:30"]

1. e4 {[%clk 0:02:59]}  c5 {[%clk 0:02:59]} 2. Nf3 {[%clk 0:02:59]}  Nc6 {[%clk 0:03:00]} 3. Bb5 {[%clk 0:02:58]}  e5 {[%clk 0:03:00]} 4. O-O {[%clk 0:02:57]}  Bd6 {[%clk 0:03:00]} 5. d4 {[%clk 0:02:57]}  Nxd4 {[%clk 0:02:49]} 6. Bc4 {[%clk 0:02:57]}  h6 {[%clk 0:02:46]} 7. Nxd4 {[%clk 0:02:25]}  cxd4 {[%clk 0:02:45]} 8. c3 {[%clk 0:02:26]}  Bc5 {[%clk 0:02:31]} 9. b4 {[%clk 0:02:09]}  Bb6 {[%clk 0:02:31]} 10. Bb2 {[%clk 0:02:08]}  dxc3 {[%clk 0:02:07]} 11. Nxc3 {[%clk 0:02:08]}  Nf6 {[%clk 0:02:07]} 12. Nb5 {[%clk 0:01:50]}  O-O {[%clk 0:02:00]} 13. Nd6 {[%clk 0:01:49]}  Qe7 {[%clk 0:01:44]} 14. a3 {[%clk 0:01:34]}  Ne8 {[%clk 0:01:44]} 15. Nf5 {[%clk 0:01:07]}  Qf6 {[%clk 0:01:44]} 16. Kh1 {[%clk 0:01:07]}  d5 {[%clk 0:01:39]} 17. Bxd5 {[%clk 0:01:03]}  Bxf5 {[%clk 0:01:39]} 18. exf5 {[%clk 0:01:01]}  Rd8 {[%clk 0:01:27]} 19. Qf3 {[%clk 0:00:50]}  Nd6 {[%clk 0:01:24]} 20. g4 {[%clk 0:00:49]}  Bd4 {[%clk 0:01:07]} 21. Bxd4 {[%clk 0:00:48]}  exd4 {[%clk 0:01:08]} 22. Rad1 {[%clk 0:00:41]}  b6 {[%clk 0:01:01]} 23. a4 {[%clk 0:00:40]}  Rfe8 {[%clk 0:00:54]} 24. Rd3 {[%clk 0:00:40]}  Re5 {[%clk 0:00:46]} 25. Bb3 {[%clk 0:00:18]}  Ne4 {[%clk 0:00:47]} 26. Rfd1 {[%clk 0:00:17]}  Qh4 {[%clk 0:00:43]} 27. Kg2 {[%clk 0:00:15]}  h5 {[%clk 0:00:30]} 0-1


[Site "https://www.chess.com"]

[Event "Titled Tuesday Blitz March 29 Early 2022"]
[White "Cramling Bellon, Anna"]
[Black "Wu, Sibo"]
[WhiteFideId "32009232"]
[BlackFideId "8606048"]
[WhiteElo "1905"]
[BlackElo "2336"]
[Result "1-0"]
[Round "07"]
[TimeControl "180+1"]
[Date "2022.03.30"]
[WhiteClock "0:00:03"]
[BlackClock "0:00:01"]

1. d4 {[%clk 0:03:00]}  d5 {[%clk 0:02:59]} 2. c4 {[%clk 0:02:57]}  c6 {[%clk 0:03:00]} 3. Nf3 {[%clk 0:02:57]}  Nf6 {[%clk 0:03:00]} 4. Nc3 {[%clk 0:02:56]}  a6 {[%clk 0:03:00]} 5. c5 {[%clk 0:02:56]}  Nbd7 {[%clk 0:02:57]} 6. Bf4 {[%clk 0:02:56]}  Nh5 {[%clk 0:02:57]} 7. Bg5 {[%clk 0:02:55]}  g6 {[%clk 0:02:52]} 8. e3 {[%clk 0:02:53]}  Bg7 {[%clk 0:02:52]} 9. Be2 {[%clk 0:02:52]}  Nhf6 {[%clk 0:02:47]} 10. O-O {[%clk 0:02:51]}  O-O {[%clk 0:02:45]} 11. Qc2 {[%clk 0:02:50]}  Re8 {[%clk 0:02:42]} 12. Rad1 {[%clk 0:02:48]}  h6 {[%clk 0:02:33]} 13. Bh4 {[%clk 0:02:47]}  e5 {[%clk 0:01:26]} 14. dxe5 {[%clk 0:02:21]}  Nxe5 {[%clk 0:01:26]} 15. e4 {[%clk 0:02:18]}  g5 {[%clk 0:01:17]} 16. Bg3 {[%clk 0:02:15]}  Ng6 {[%clk 0:00:55]} 17. exd5 {[%clk 0:01:57]}  cxd5 {[%clk 0:00:54]} 18. Bc4 {[%clk 0:01:35]}  Be6 {[%clk 0:00:49]} 19. Nd4 {[%clk 0:01:26]}  Qc8 {[%clk 0:00:22]} 20. Nxe6 {[%clk 0:01:23]}  fxe6 {[%clk 0:00:14]} 21. Qxg6 {[%clk 0:01:02]}  dxc4 {[%clk 0:00:14]} 22. Be5 {[%clk 0:01:03]}  Rf8 {[%clk 0:00:12]} 23. Ne4 {[%clk 0:00:56]}  Qe8 {[%clk 0:00:08]} 24. Nxf6+ {[%clk 0:00:44]}  Rxf6 {[%clk 0:00:08]} 25. Qxe8+ {[%clk 0:00:44]}  Rxe8 {[%clk 0:00:08]} 26. Bxf6 {[%clk 0:00:44]}  Bxf6 {[%clk 0:00:08]} 27. Rd7 {[%clk 0:00:40]}  Bxb2 {[%clk 0:00:08]} 28. Rxb7 {[%clk 0:00:40]}  c3 {[%clk 0:00:08]} 29. c6 {[%clk 0:00:39]}  Rc8 {[%clk 0:00:06]} 30. c7 {[%clk 0:00:19]}  Kf7 {[%clk 0:00:06]} 31. f4 {[%clk 0:00:17]}  Ke7 {[%clk 0:00:05]} 32. fxg5 {[%clk 0:00:17]}  hxg5 {[%clk 0:00:06]} 33. g4 {[%clk 0:00:07]}  Kd7 {[%clk 0:00:06]} 34. Rf7+ {[%clk 0:00:07]}  Kc6 {[%clk 0:00:06]} 35. Rb8 {[%clk 0:00:02]}  Rxc7 {[%clk 0:00:06]} 36. Rxc7+ {[%clk 0:00:01]}  Kxc7 {[%clk 0:00:07]} 37. Rb4 {[%clk 0:00:01]}  c2 {[%clk 0:00:07]} 38. Rc4+ {[%clk 0:00:02]}  Kd6 {[%clk 0:00:07]} 39. Rxc2 {[%clk 0:00:03]}  Ke5 {[%clk 0:00:08]} 40. Rg2 {[%clk 0:00:03]}  Kf4 {[%clk 0:00:07]} 41. Kf1 {[%clk 0:00:04]}  Bd4 {[%clk 0:00:07]} 42. Ke2 {[%clk 0:00:04]}  e5 {[%clk 0:00:06]} 43. Kd3 {[%clk 0:00:04]}  Bc5 {[%clk 0:00:05]} 44. Kc4 {[%clk 0:00:03]}  Bd4 {[%clk 0:00:05]} 45. Kd5 {[%clk 0:00:03]}  a5 {[%clk 0:00:05]} 46. Kc4 {[%clk 0:00:03]}  Kf3 {[%clk 0:00:04]} 47. Rc2 {[%clk 0:00:01]}  Kxg4 {[%clk 0:00:04]} 48. a4 {[%clk 0:00:02]}  Kh3 {[%clk 0:00:03]} 49. Kb5 {[%clk 0:00:02]}  e4 {[%clk 0:00:02]} 50. Kxa5 {[%clk 0:00:02]}  e3 {[%clk 0:00:03]} 51. Kb5 {[%clk 0:00:02]}  Be5 {[%clk 0:00:01]} 52. a5 {[%clk 0:00:02]}  Bxh2 {[%clk 0:00:01]} 53. a6 {[%clk 0:00:02]}  Bb8 {[%clk 0:00:01]} 54. Kb6 {[%clk 0:00:02]}  Kg3 {[%clk 0:00:01]} 55. Kb7 {[%clk 0:00:03]} 1-0


[Site "https://www.chess.com"]

[Event "Titled Tuesday Blitz March 29 Early 2022"]
[White "Del Rio De Angelis, Salvador G."]
[Black "Pourkashiyan, Atousa"]
[WhiteFideId "2203138"]
[BlackFideId "12502014"]
[WhiteElo "2491"]
[BlackElo "2247"]
[Result "1-0"]
[Round "07"]
[TimeControl "180+1"]
[Date "2022.03.30"]
[WhiteClock "0:01:16"]
[BlackClock "0:00:04"]

1. d3 {[%clk 0:03:00]}  d5 {[%clk 0:02:59]} 2. c4 {[%clk 0:02:56]}  dxc4 {[%clk 0:02:58]} 3. Qa4+ {[%clk 0:02:55]}  c6 {[%clk 0:02:56]} 4. Qxc4 {[%clk 0:02:55]}  Nf6 {[%clk 0:02:56]} 5. g3 {[%clk 0:02:55]}  e5 {[%clk 0:02:50]} 6. Bg2 {[%clk 0:02:55]}  Be6 {[%clk 0:02:49]} 7. Qc2 {[%clk 0:02:55]}  Na6 {[%clk 0:02:44]} 8. a3 {[%clk 0:02:54]}  Nc5 {[%clk 0:02:34]} 9. Nd2 {[%clk 0:02:54]}  a5 {[%clk 0:02:28]} 10. Ngf3 {[%clk 0:02:52]}  Qc7 {[%clk 0:02:09]} 11. O-O {[%clk 0:02:52]}  Be7 {[%clk 0:02:08]} 12. Nc4 {[%clk 0:02:45]}  Bxc4 {[%clk 0:01:53]} 13. Qxc4 {[%clk 0:02:45]}  O-O {[%clk 0:01:54]} 14. Bg5 {[%clk 0:02:41]}  Ne6 {[%clk 0:01:52]} 15. Bxf6 {[%clk 0:02:36]}  Bxf6 {[%clk 0:01:53]} 16. Nd2 {[%clk 0:02:30]}  Nd4 {[%clk 0:01:45]} 17. Rfe1 {[%clk 0:02:30]}  a4 {[%clk 0:01:28]} 18. Rac1 {[%clk 0:02:27]}  b5 {[%clk 0:01:20]} 19. Qc5 {[%clk 0:02:17]}  Rac8 {[%clk 0:01:08]} 20. e3 {[%clk 0:02:01]}  Ne6 {[%clk 0:01:07]} 21. Qb4 {[%clk 0:02:01]}  Qd7 {[%clk 0:00:59]} 22. Ne4 {[%clk 0:01:49]}  Be7 {[%clk 0:00:56]} 23. Qc3 {[%clk 0:01:48]}  f5 {[%clk 0:00:43]} 24. Nd2 {[%clk 0:01:48]}  Bf6 {[%clk 0:00:36]} 25. Qa5 {[%clk 0:01:48]}  Qxd3 {[%clk 0:00:28]} 26. Bxc6 {[%clk 0:01:48]}  e4 {[%clk 0:00:21]} 27. Bxb5 {[%clk 0:01:47]}  Qd5 {[%clk 0:00:16]} 28. Qxa4 {[%clk 0:01:47]}  Rxc1 {[%clk 0:00:12]} 29. Rxc1 {[%clk 0:01:46]}  Qxd2 {[%clk 0:00:12]} 30. Rd1 {[%clk 0:01:46]}  Qxb2 {[%clk 0:00:12]} 31. Bc4 {[%clk 0:01:46]}  Qe5 {[%clk 0:00:09]} 32. Qd7 {[%clk 0:01:45]}  Kh8 {[%clk 0:00:08]} 33. Qxe6 {[%clk 0:01:42]}  Qxe6 {[%clk 0:00:08]} 34. Bxe6 {[%clk 0:01:42]}  g6 {[%clk 0:00:07]} 35. a4 {[%clk 0:01:41]}  Ra8 {[%clk 0:00:07]} 36. Bd7 {[%clk 0:01:40]}  Ra7 {[%clk 0:00:07]} 37. Bb5 {[%clk 0:01:40]}  Kg7 {[%clk 0:00:07]} 38. Kf1 {[%clk 0:01:39]}  Bc3 {[%clk 0:00:08]} 39. Ke2 {[%clk 0:01:39]}  Kf6 {[%clk 0:00:08]} 40. Rd8 {[%clk 0:01:33]}  Ba5 {[%clk 0:00:06]} 41. h3 {[%clk 0:01:32]}  h5 {[%clk 0:00:05]} 42. g4 {[%clk 0:01:28]}  hxg4 {[%clk 0:00:05]} 43. hxg4 {[%clk 0:01:29]}  Kg5 {[%clk 0:00:06]} 44. Re8 {[%clk 0:01:29]}  Kxg4 {[%clk 0:00:05]} 45. Rg8 {[%clk 0:01:27]}  Kg5 {[%clk 0:00:04]} 46. Be8 {[%clk 0:01:26]}  Kf6 {[%clk 0:00:04]} 47. Rxg6+ {[%clk 0:01:25]}  Ke5 {[%clk 0:00:04]} 48. Bb5 {[%clk 0:01:20]}  Rc7 {[%clk 0:00:04]} 49. Bc6 {[%clk 0:01:20]}  Ra7 {[%clk 0:00:04]} 50. Kd1 {[%clk 0:01:18]}  Rc7 {[%clk 0:00:05]} 51. Kc2 {[%clk 0:01:17]}  Bb4 {[%clk 0:00:05]} 52. Kb3 {[%clk 0:01:17]}  Bd6 {[%clk 0:00:05]} 53. Bb5 {[%clk 0:01:17]}  Rc1 {[%clk 0:00:05]} 54. Bc4 {[%clk 0:01:16]}  Bb8 {[%clk 0:00:04]} 55. Re6# {[%clk 0:01:16]} 1-0


[Site "https://www.chess.com"]